bitfinex-derivatives/quotes_BTCF0:USTF0_20241003
["timestamp","ask_amount","ask_price","bid_price","bid_amount"]
[1727962040766,0.23868962,60568.0,60551.0,0.3608]
[1727962041058,0.80252001,60572.0,60566.0,0.082566]
[1727962041059,0.040451,60567.0,60566.0,0.082566]
[1727962041254,0.09115703,60567.0,60566.0,0.082566]
[1727962041457,0.05070603,60567.0,60565.0,0.3608]
[1727962041659,0.14753347,60567.0,60565.0,0.3608]
[1727962041854,0.14753347,60567.0,60565.0,0.443368]
[1727962042544,0.14753347,60567.0,60566.0,0.082566]
[1727962042952,0.14753347,60567.0,60565.0,0.3608]
[1727962042953,0.082566,60566.0,60565.0,0.3608]
[1727962043263,0.082566,60566.0,60558.0,0.3608]
[1727962043264,0.082576,60559.0,60558.0,0.3608]
[1727962043463,0.17373791,60559.0,60558.0,0.3608]
[1727962043753,0.17373882,60559.0,60558.0,0.3608]
[1727962044349,0.082588,60551.0,60549.0,0.3608]
[1727962044651,0.082588,60550.0,60549.0,0.3608]
[1727962044959,0.082584,60553.0,60549.0,0.443389]
[1727962045255,0.082588,60550.0,60549.0,0.3608]
[1727962045644,0.44,60556.0,60543.0,0.00247746]
[1727962045851,0.082582,60555.0,60543.0,0.00247746]
[1727962046056,0.082582,60555.0,60543.0,0.08507446]
[1727962046256,0.082593,60547.0,60543.0,0.082597]
[1727962046554,0.001,60550.0,60540.0,0.3608]
[1727962046943,0.086589,60550.0,60549.0,0.001]
[1727962047144,0.004,60550.0,60549.0,0.001]
[1727962047650,0.087588,60550.0,60549.0,0.001]
[1727962048458,1.183068,60550.0,60549.0,0.001]
[1727962048658,0.082604,60539.0,60534.0,0.44721]
[1727962048854,0.082605,60538.0,60534.0,0.44341]
[1727962049161,0.10818096,60550.0,60534.0,0.3608]
[1727962049461,0.10818096,60550.0,60544.0,0.082596]
[1727962049462,0.085588,60550.0,60544.0,0.082596]
[1727962049648,0.087588,60550.0,60549.0,0.002]
[1727962049849,0.005,60550.0,60549.0,0.002]
[1727962050055,0.005,60550.0,60549.0,0.08459]
[1727962050250,0.005,60550.0,60549.0,0.57907]
[1727962050450,0.001,60550.0,60549.0,0.57807]
[1727962050656,0.001,60550.0,60549.0,1.20807]
[1727962050958,0.0038,60561.0,60560.0,0.082575]
[1727962051148,0.00247817,60562.0,60560.0,0.082575]
[1727962051454,0.00247817,60562.0,60549.0,0.001]
[1727962051455,0.00247817,60562.0,60561.0,0.082573]
[1727962051955,0.15044006,60562.0,60556.0,0.63]
[1727962052157,0.082575,60560.0,60556.0,0.63]
[1727962052356,0.04044735,60559.0,60556.0,0.63]
[1727962052544,0.04044735,60558.0,60556.0,0.63]
[1727962052744,0.04044735,60557.0,60556.0,0.71258]
[1727962053654,0.00247817,60562.0,60561.0,0.082573]
[1727962053859,0.00247817,60562.0,60561.0,0.443373]
[1727962054154,0.00247817,60562.0,60561.0,0.938733]
[1727962054155,0.13159664,60562.0,60561.0,0.938733]
[1727962054355,0.13159664,60563.0,60562.0,0.082572]
[1727962054857,0.17203658,60563.0,60562.0,0.082572]
[1727962055157,0.04043994,60563.0,60562.0,0.082572]
[1727962055355,0.09113111,60567.0,60566.0,0.082566]
[1727962055556,0.082569,60565.0,60563.0,0.08257]
[1727962055765,0.12301036,60564.0,60563.0,0.082571]
[1727962055957,0.12301036,60564.0,60561.0,0.3618]
[1727962055958,0.082572,60562.0,60561.0,0.444373]
[1727962056267,0.082572,60562.0,60561.0,0.3618]
[1727962056755,0.12301825,60562.0,60561.0,0.3618]
[1727962057159,0.12301825,60562.0,60561.0,0.3608]
[1727962057362,0.04144625,60562.0,60561.0,0.443373]
[1727962057864,0.04144625,60562.0,60561.0,0.444373]
[1727962058060,0.04544625,60562.0,60561.0,0.444373]
[1727962058452,0.005,60562.0,60561.0,0.444373]
[1727962058653,0.04544239,60562.0,60561.0,0.444373]
[1727962058963,0.04144239,60562.0,60561.0,0.451373]
[1727962059547,0.04144239,60562.0,60561.0,0.3688]
[1727962059752,0.04144239,60562.0,60561.0,0.3618]
[1727962059753,0.086572,60562.0,60561.0,0.3618]
[1727962059963,0.003,60562.0,60561.0,0.450373]
[1727962060163,0.003,60562.0,60561.0,0.089573]
[1727962060458,0.003,60562.0,60548.0,0.63084]
[1727962060459,0.082574,60561.0,60555.0,0.443381]
[1727962060657,0.08258,60556.0,60555.0,0.3608]
[1727962061964,0.001,60562.0,60561.0,0.082573]
[1727962062650,0.14796189,60575.0,60561.0,1.538733]
[1727962062852,0.13546458,60580.0,60579.0,0.082549]
[1727962063064,0.04423923,60580.0,60579.0,0.522549]
[1727962063362,0.04043923,60580.0,60579.0,0.522549]
[1727962063568,0.04043923,60580.0,60579.0,0.883349]
[1727962063751,0.04043923,60580.0,60579.0,0.3608]
[1727962063952,0.04143923,60580.0,60579.0,0.3618]
[1727962064352,0.04143923,60580.0,60579.0,0.001]
[1727962064667,0.53663923,60580.0,60574.0,0.3608]
[1727962064857,0.04643923,60580.0,60579.0,0.001]
[1727962065363,0.04643923,60580.0,60579.0,0.083549]
[1727962066056,0.04643923,60580.0,60579.0,0.523549]
[1727962066766,0.04643923,60580.0,60579.0,0.524549]
[1727962066767,0.17810381,60580.0,60579.0,0.524549]
[1727962066959,0.21853425,60580.0,60579.0,1.619749]
[1727962067163,0.08686967,60580.0,60579.0,1.980549]
[1727962067466,0.001,60580.0,60579.0,1.979549]
[1727962067864,0.001,60580.0,60579.0,2.608549]
[1727962068064,0.003,60580.0,60579.0,2.608549]
[1727962070090,0.086332,60591.0,60590.0,0.082534]
[1727962070294,0.13166458,60595.0,60579.0,0.8008]
[1727962070594,0.082532,60592.0,60591.0,0.082531]
[1727962070787,0.13166458,60593.0,60592.0,0.082531]
[1727962070984,0.13166458,60595.0,60591.0,0.3608]
[1727962071191,0.082519,60601.0,60591.0,0.8008]
[1727962071192,0.13107562,60597.0,60591.0,0.8008]
[1727962071386,0.14796189,60601.0,60591.0,0.8008]
[1727962071387,0.13107562,60604.0,60596.0,0.883326]
[1727962071581,0.067774,60606.0,60604.0,0.522515]
[1727962071781,0.067774,60606.0,60604.0,1.04]
[1727962071985,0.067774,60606.0,60605.0,0.577513]
[1727962072194,0.067774,60606.0,60605.0,0.082513]
[1727962072388,0.067774,60606.0,60597.0,0.0989]
[1727962072389,0.082516,60603.0,60597.0,0.082524]
[1727962072583,0.44,60614.0,60596.0,0.3608]
[1727962072584,0.082511,60607.0,60598.0,0.082523]
[1727962072788,0.082521,60599.0,60598.0,0.082523]
[1727962072987,0.082513,60605.0,60596.0,0.3608]
[1727962073180,0.44,60609.0,60596.0,0.3608]
[1727962073181,0.08251,60608.0,60596.0,0.3608]
[1727962073383,0.082511,60608.0,60605.0,0.082512]
[1727962073590,0.2763,60613.0,60601.0,0.082518]
[1727962073786,0.2763,60613.0,60602.0,0.082517]
[1727962073787,0.082516,60603.0,60602.0,0.082517]
[1727962073985,0.082522,60599.0,60596.0,0.3608]
[1727962074186,0.082524,60598.0,60596.0,0.3608]
[1727962074385,0.082524,60597.0,60596.0,0.3608]
[1727962074802,0.577604,60597.0,60596.0,0.3608]
[1727962074988,0.082524,60597.0,60596.0,0.3108]
[1727962075185,0.082519,60601.0,60596.0,0.3108]
[1727962075391,0.082516,60603.0,60596.0,0.3108]
[1727962075392,0.10161975,60603.0,60596.0,0.3108]
[1727962075602,0.082524,60597.0,60596.0,0.3108]
[1727962075993,0.082524,60597.0,60591.0,0.36327516]
[1727962075994,0.082531,60592.0,60591.0,0.36327516]
[1727962076483,0.3608,60600.0,60591.0,0.36327516]
[1727962076689,0.3608,60600.0,60596.0,0.083525]
[1727962077195,0.082553,60576.0,60570.0,0.00247632]
[1727962077402,0.8008,60597.0,60570.0,0.00247632]
[1727962077403,0.08256,60571.0,60570.0,0.00247632]
[1727962077619,0.082569,60565.0,60554.0,0.0045]
[1727962077796,0.44,60555.0,60541.0,0.0083]
[1727962078101,0.44,60548.0,60541.0,0.0083]
[1727962078497,0.44,60548.0,60535.0,0.3608]
[1727962079209,0.44,60548.0,60541.0,0.006]
[1727962079392,0.44,60553.0,60541.0,0.006]
[1727962079595,0.082561,60570.0,60541.0,0.006]
[1727962079596,0.082575,60560.0,60544.0,0.44]
[1727962079793,0.082574,60561.0,60544.0,0.44]
[1727962080002,0.44,60566.0,60544.0,0.44]
[1727962080401,0.082594,60546.0,60541.0,0.006]
[1727962080907,0.0083,60569.0,60535.0,0.3618]
[1727962080908,0.44,60565.0,60540.0,0.44]
[1727962081100,0.08503515,60573.0,60556.0,0.44]
[1727962081101,0.3691,60571.0,60556.0,0.44]
[1727962081401,0.3691,60571.0,60556.0,0.52258]
[1727962081710,0.8091,60571.0,60553.0,0.082584]
[1727962082005,0.082564,60568.0,60566.0,0.06558399]
[1727962082404,0.082564,60568.0,60567.0,0.06558399]
[1727962083010,0.7033847,60571.0,60566.0,0.06558399]
[1727962083202,0.70166469,60571.0,60570.0,0.049093]
[1727962083398,0.78422469,60571.0,60570.0,0.049093]
[1727962085202,0.70166469,60571.0,60567.0,0.001]
[1727962085399,0.082564,60568.0,60567.0,0.050093]
[1727962085597,0.082573,60561.0,60559.0,0.049093]
[1727962085802,0.082577,60559.0,60557.0,0.049093]
[1727962086002,0.082577,60559.0,60555.0,0.049093]
[1727962086203,0.082577,60559.0,60556.0,0.049093]
[1727962086506,0.082577,60559.0,60555.0,0.049093]
[1727962087103,0.082577,60559.0,60554.0,0.049093]
[1727962087414,0.082584,60553.0,60552.0,0.049093]
[1727962087717,0.082588,60550.0,60549.0,0.04915836]
[1727962087901,0.522584,60553.0,60538.0,0.06558399]
[1727962088099,0.522584,60553.0,60536.0,0.0925]
[1727962088100,0.082598,60543.0,60536.0,0.15808399]
[1727962088300,0.44,60541.0,60536.0,0.0925]
[1727962088501,0.44,60541.0,60535.0,0.06558399]
[1727962088705,0.44,60541.0,60534.0,0.06558399]
[1727962089204,0.44,60541.0,60527.0,0.27613584]
[1727962089205,0.3608,60552.0,60543.0,0.082598]
[1727962089404,0.3608,60552.0,60543.0,0.44]
[1727962089713,0.3608,60552.0,60550.0,0.082587]
[1727962089906,0.3608,60552.0,60544.0,0.0982]
[1727962090303,0.2113,60552.0,60551.0,0.082587]
[1727962090613,0.3608,60571.0,60562.0,0.082571]
[1727962090817,0.3608,60571.0,60558.0,0.44]
[1727962091109,0.3608,60571.0,60565.0,0.082567]
[1727962091418,0.3608,60571.0,60553.0,0.44]
[1727962091808,0.3608,60571.0,60562.0,0.082572]
[1727962092007,0.3608,60571.0,60554.0,0.63]
[1727962092008,0.3608,60571.0,60555.0,0.082581]
[1727962092212,0.3608,60571.0,60562.0,0.082571]
[1727962092526,0.44,60570.0,60554.0,0.63]
[1727962092703,0.44,60570.0,60556.0,0.08258]
[1727962092903,0.44,60570.0,60556.0,0.08208]
[1727962093113,0.44,60570.0,60555.0,0.014]
[1727962093305,0.44,60570.0,60555.0,0.09658]
[1727962093616,0.3608,60557.0,60555.0,0.014]
[1727962093919,0.3608,60557.0,60555.0,0.0135]
[1727962094419,0.3608,60557.0,60555.0,0.013]
[1727962094607,0.082585,60553.0,60537.0,0.082606]
[1727962094918,0.44,60548.0,60537.0,0.082606]
[1727962095117,0.44,60548.0,60545.0,0.00197721]
[1727962095424,0.44,60553.0,60541.0,0.0826]
[1727962095616,0.44,60553.0,60542.0,0.082599]
[1727962095921,0.44,60553.0,60536.0,0.30286611]
[1727962096216,0.44,60553.0,60545.0,0.001]
[1727962096624,0.44,60553.0,60542.0,0.082599]
[1727962096816,0.3608,60543.0,60536.0,0.44]
[1727962097123,0.3608,60543.0,60542.0,0.083599]
[1727962097318,0.41087104,60543.0,60542.0,0.083599]
[1727962097620,0.41087104,60543.0,60542.0,0.523599]
[1727962097818,0.41087104,60543.0,60542.0,0.36860684]
[1727962098223,0.05007104,60543.0,60542.0,1.46412684]
[1727962098430,0.05007104,60543.0,60542.0,1.54672584]
[1727962098723,0.05007104,60543.0,60542.0,1.54772584]
[1727962098921,0.002,60553.0,60542.0,1.54772584]
[1727962098922,0.002,60553.0,60552.0,0.082586]
[1727962099123,0.3608,60554.0,60552.0,1.15436154]
[1727962099316,0.00247813,60564.0,60563.0,0.082571]
[1727962101010,0.02878937,60564.0,60563.0,0.082571]
[1727962101713,0.02878937,60564.0,60557.0,0.55763199]
[1727962101927,0.02978937,60564.0,60563.0,0.012]
[1727962102220,0.03078937,60564.0,60563.0,0.02059359]
[1727962102618,0.03078937,60564.0,60563.0,0.001]
[1727962102619,0.02878937,60564.0,60563.0,0.001]
[1727962102822,0.02878937,60564.0,60563.0,0.083571]
[1727962103019,0.00247813,60564.0,60563.0,0.083571]
[1727962103328,0.00247813,60564.0,60563.0,0.082571]
[1727962103624,0.00647813,60564.0,60563.0,0.082571]
[1727962103833,0.00647813,60564.0,60560.0,0.082573]
[1727962104020,0.00647813,60564.0,60553.0,0.56]
[1727962104226,0.00647813,60564.0,60562.0,0.082572]
[1727962104929,0.00547813,60564.0,60563.0,0.082571]
[1727962105218,0.00247813,60564.0,60563.0,0.083571]
[1727962105627,0.00547813,60564.0,60563.0,0.083571]
[1727962105815,0.00847813,60564.0,60563.0,0.082571]
[1727962106218,0.01347813,60564.0,60563.0,0.083571]
[1727962106627,0.01647813,60564.0,60563.0,0.084571]
[1727962107128,0.05692976,60564.0,60563.0,0.084571]
[1727962107313,0.05692578,60564.0,60563.0,0.084571]
[1727962107710,0.01647813,60564.0,60563.0,0.084571]
[1727962108220,0.05792094,60564.0,60563.0,0.084571]
[1727962108422,0.05792062,60564.0,60563.0,0.084571]
[1727962108822,0.05092062,60564.0,60563.0,0.083571]
[1727962109131,0.05092062,60564.0,60549.0,0.082589]
[1727962109132,0.082573,60562.0,60549.0,0.082589]
[1727962109425,0.082573,60562.0,60559.0,0.082576]
[1727962109426,0.17210623,60561.0,60559.0,0.082576]
[1727962109623,0.522573,60562.0,60559.0,0.082576]
[1727962109624,0.04044249,60560.0,60559.0,0.082576]
[1727962109830,0.00947813,60564.0,60563.0,0.082571]
[1727962110020,0.05792159,60564.0,60563.0,0.083571]
[1727962110321,0.01747813,60564.0,60563.0,0.083571]
[1727962110526,0.00947813,60564.0,60563.0,0.082571]
[1727962111236,0.082574,60561.0,60559.0,0.001]
[1727962111425,0.04044384,60560.0,60559.0,0.001]
[1727962111726,0.13327214,60560.0,60559.0,0.001]
[1727962112024,0.082575,60560.0,60559.0,0.001]
[1727962112532,0.8562,60560.0,60544.0,0.00247739]
[1727962112720,0.082583,60554.0,60546.0,0.082593]
[1727962112919,0.44,60555.0,60544.0,0.00247739]
[1727962112920,0.44,60555.0,60544.0,0.08507339]
[1727962113227,0.082588,60551.0,60544.0,0.00247739]
[1727962113522,0.44,60555.0,60544.0,0.00247739]
[1727962113727,0.082591,60548.0,60545.0,0.082595]
[1727962113927,0.003,60554.0,60548.0,0.082591]
[1727962114128,0.082588,60551.0,60545.0,0.082595]
[1727962114328,0.003,60554.0,60544.0,0.00247739]
[1727962114521,0.082594,60546.0,60544.0,0.00247739]
[1727962114726,0.085584,60554.0,60549.0,0.082588]
[1727962114925,0.082586,60552.0,60546.0,0.082592]
[1727962115133,0.085584,60554.0,60544.0,0.00247739]
[1727962115134,0.085584,60554.0,60549.0,0.082589]
[1727962115320,0.009,60551.0,60549.0,0.082589]
[1727962115625,0.009,60551.0,60544.0,0.00347739]
[1727962115826,0.091587,60551.0,60544.0,0.00447739]
[1727962116136,0.08259,60549.0,60546.0,0.001]
[1727962116436,0.08259,60549.0,60535.0,0.3608]
[1727962116437,0.082607,60536.0,60533.0,0.06558399]
[1727962116617,0.082607,60536.0,60524.0,0.00247821]
[1727962116618,0.082609,60535.0,60530.0,0.082615]
[1727962116818,0.44,60536.0,60525.0,0.06558399]
[1727962117125,0.44,60537.0,60524.0,0.00247821]
[1727962117322,0.44,60537.0,60528.0,0.082617]
[1727962117323,0.082614,60532.0,60528.0,0.082617]
[1727962117728,0.082609,60535.0,60529.0,0.082616]
[1727962117920,0.44,60543.0,60524.0,0.00247821]
[1727962118115,0.44,60543.0,60526.0,0.082621]
[1727962118321,0.00247883,60544.0,60543.0,0.082598]
[1727962118840,0.001,60535.0,60534.0,0.08261]
[1727962119432,0.001,60543.0,60531.0,0.082614]
[1727962119433,0.001,60543.0,60541.0,0.0826]
[1727962119817,0.01047883,60544.0,60541.0,0.0826]
[1727962120022,0.01847883,60544.0,60543.0,0.001]
[1727962120430,0.01847883,60544.0,60543.0,0.083598]
[1727962120617,0.01047883,60544.0,60543.0,0.083598]
[1727962121227,0.01047883,60544.0,60543.0,0.001]
[1727962121627,0.09307483,60544.0,60543.0,0.001]
[1727962121928,0.08507483,60544.0,60534.0,0.001]
[1727962122130,0.082605,60538.0,60534.0,0.001]
[1727962122325,0.005,60543.0,60524.0,0.00247821]
[1727962122326,0.44,60535.0,60524.0,0.00247821]
[1727962122524,0.44,60541.0,60524.0,0.00247821]
[1727962122726,0.44,60541.0,60525.0,0.082621]
[1727962123035,0.44,60541.0,60535.0,0.082608]
[1727962123232,0.44,60541.0,60534.0,0.001]
[1727962123437,0.00947883,60544.0,60538.0,0.082604]
[1727962123438,0.082598,60543.0,60538.0,0.082604]
[1727962123627,0.001,60541.0,60539.0,0.082603]
[1727962124035,0.001,60541.0,60525.0,0.642621]
[1727962124036,0.001,60541.0,60540.0,0.082602]
[1727962124333,0.001,60541.0,60525.0,0.642621]
[1727962124637,0.002,60541.0,60539.0,0.082603]
[1727962124927,0.442,60541.0,60529.0,0.082616]
[1727962125233,0.44,60534.0,60529.0,0.082616]
[1727962125529,0.44,60534.0,60524.0,0.01443821]
[1727962125530,0.522611,60534.0,60530.0,0.082615]
[1727962125930,0.44,60534.0,60531.0,0.082613]
[1727962126522,0.441,60534.0,60531.0,0.082613]
[1727962127631,0.52361,60534.0,60529.0,0.014]
[1727962127831,0.082611,60533.0,60529.0,0.007]
[1727962128134,0.082613,60532.0,60531.0,0.005]
[1727962128328,0.082613,60532.0,60531.0,0.01]
[1727962128920,0.3608,60533.0,60531.0,0.01]
[1727962129220,0.082615,60531.0,60529.0,0.014]
[1727962129831,0.082615,60531.0,60529.0,0.007]
[1727962130131,0.082616,60530.0,60529.0,0.007]
[1727962130834,0.3608,60533.0,60524.0,0.00247821]
[1727962131136,0.08262,60527.0,60524.0,0.00247821]
[1727962131636,0.3608,60533.0,60524.0,0.00247821]
[1727962131637,0.082621,60526.0,60524.0,0.00247821]
[1727962131831,0.3608,60533.0,60524.0,0.00247821]
[1727962131832,0.001,60530.0,60524.0,0.00247821]
[1727962132034,0.083616,60530.0,60529.0,0.007]
[1727962132537,0.082622,60525.0,60524.0,0.01347821]
[1727962132837,0.002,60527.0,60524.0,0.02547821]
[1727962133054,0.082622,60525.0,60524.0,0.023]
[1727962133338,0.001,60527.0,60524.0,0.011]
[1727962133527,0.001,60527.0,60526.0,0.082621]
[1727962134533,0.001,60527.0,60526.0,0.443421]
[1727962134738,0.44,60539.0,60526.0,0.3608]
[1727962134943,0.3608,60546.0,60529.0,0.089617]
[1727962134944,0.001,60530.0,60529.0,0.089617]
[1727962135238,0.083616,60530.0,60529.0,0.007]
[1727962135625,0.001,60527.0,60526.0,0.02]
[1727962135831,0.08362,60527.0,60526.0,0.02]
[1727962136030,0.08362,60527.0,60526.0,0.01]
[1727962136427,0.44,60528.0,60525.0,0.082622]
[1727962136631,0.44,60528.0,60515.0,0.56]
[1727962136827,0.08362,60527.0,60526.0,0.01]
[1727962137040,0.001,60527.0,60526.0,0.01]
[1727962137237,1.45744,60527.0,60508.0,0.06558399]
[1727962137442,1.45744,60527.0,60507.0,0.082647]
[1727962137443,0.082637,60515.0,60507.0,0.082647]
[1727962137738,0.08264,60513.0,60506.0,0.01926904]
[1727962137941,0.08264,60513.0,60507.0,0.082646]
[1727962138440,0.082641,60512.0,60505.0,0.082649]
[1727962138739,0.082641,60512.0,60507.0,0.01]
[1727962139036,0.001,60513.0,60507.0,0.024]
[1727962139243,0.082644,60510.0,60507.0,0.024]
[1727962139433,0.522646,60508.0,60507.0,0.024]
[1727962139743,0.522646,60508.0,60507.0,0.01]
[1727962140134,0.068647,60507.0,60505.0,0.01]
[1727962140335,0.082648,60506.0,60505.0,0.01]
[1727962141339,0.082647,60507.0,60505.0,0.01]
[1727962141537,0.001,60512.0,60505.0,0.01]
[1727962141843,0.084647,60508.0,60507.0,0.006]
[1727962142437,0.08266,60498.0,60492.0,0.182267]
[1727962142653,0.08266,60498.0,60490.0,0.36327959]
[1727962142654,0.082669,60491.0,60490.0,0.36327959]
[1727962142837,0.082655,60502.0,60497.0,0.08266]
[1727962143032,0.00248034,60506.0,60497.0,0.08266]
[1727962143033,0.082656,60501.0,60497.0,0.08266]
[1727962143534,0.001,60498.0,60497.0,0.08266]
[1727962143933,0.00248034,60506.0,60497.0,0.08266]
[1727962143934,0.00248034,60506.0,60505.0,0.08265]
[1727962144541,0.00248034,60506.0,60505.0,0.64265]
[1727962144843,0.00248034,60506.0,60505.0,0.56]
[1727962145838,0.00248034,60506.0,60505.0,0.561]
[1727962146545,0.08512834,60506.0,60505.0,0.561]
[1727962146846,0.08512834,60506.0,60505.0,0.001]
[1727962147541,0.80672834,60506.0,60505.0,0.001]
[1727962147936,1.30256834,60506.0,60505.0,0.001]
[1727962148138,1.90256834,60506.0,60505.0,0.001]
[1727962148333,1.90256834,60506.0,60490.0,0.00247959]
[1727962148334,0.082653,60503.0,60490.0,0.00247959]
[1727962148549,0.29,60496.0,60490.0,0.00247959]
[1727962149043,0.24863416,60496.0,60490.0,0.06806358]
[1727962149345,0.24863416,60496.0,60493.0,0.082665]
[1727962149736,0.24863416,60496.0,60490.0,0.00247959]
[1727962149737,0.082663,60495.0,60490.0,0.08514959]
[1727962149942,0.082663,60495.0,60491.0,0.082668]
[1727962150351,0.082666,60494.0,60490.0,0.00447959]
[1727962150648,0.25063416,60496.0,60490.0,0.00447959]
[1727962150944,0.74291471,60506.0,60490.0,0.00447959]
[1727962150945,0.72408034,60506.0,60505.0,0.08265]
[1727962151144,0.00248034,60506.0,60505.0,0.08265]
[1727962151347,0.00248034,60506.0,60502.0,0.082653]
[1727962151650,0.00248034,60506.0,60503.0,0.082652]
[1727962152146,0.08812934,60506.0,60503.0,0.082652]
[1727962152851,0.08712934,60506.0,60503.0,0.082652]
[1727962153742,0.00448034,60506.0,60505.0,0.08265]
[1727962154444,0.3608,60527.0,60505.0,1.90009]
[1727962154643,0.3608,60527.0,60524.0,0.082624]
[1727962154950,0.0038,60535.0,60524.0,0.082624]
[1727962155156,0.00348001,60537.0,60532.0,0.29]
[1727962155338,0.00348001,60537.0,60536.0,0.082607]
[1727962155545,0.3608,60539.0,60532.0,0.29]
[1727962155744,0.3608,60539.0,60525.0,0.273822]
[1727962155745,0.08261,60535.0,60525.0,0.1912]
[1727962156254,0.082615,60531.0,60527.0,0.082619]
[1727962157141,0.082615,60531.0,60525.0,0.15997077]
[1727962157142,0.08261,60535.0,60529.0,0.082617]
[1727962157343,0.014,60537.0,60526.0,0.29]
[1727962157540,0.082607,60536.0,60530.0,0.082615]
[1727962157849,0.082607,60536.0,60522.0,0.56]
[1727962157850,0.082614,60532.0,60526.0,0.08262]
[1727962158040,0.082614,60532.0,60522.0,0.56]
[1727962158041,0.082617,60530.0,60522.0,0.082626]
[1727962158358,0.29,60527.0,60518.0,0.3608]
[1727962158558,0.29,60527.0,60522.0,0.082625]
[1727962158755,0.37262,60527.0,60522.0,0.072625]
[1727962159143,1.0116,60523.0,60500.0,0.3608]
[1727962159342,0.29,60513.0,60504.0,0.08265]
[1727962159640,0.29,60513.0,60505.0,0.082649]
[1727962159845,0.082639,60514.0,60505.0,0.082649]
[1727962160053,0.804226,60523.0,60500.0,0.3608]
[1727962160054,0.082628,60522.0,60501.0,0.29]
[1727962160245,1.0116,60523.0,60505.0,0.08265]
[1727962160448,0.29,60513.0,60502.0,0.082653]
[1727962160743,0.29,60513.0,60500.0,0.3608]
[1727962160943,0.29,60513.0,60501.0,0.082655]
[1727962160944,0.372639,60513.0,60501.0,0.082655]
[1727962161152,0.082643,60510.0,60501.0,0.082655]
[1727962161456,0.082643,60510.0,60500.0,0.3608]
[1727962161657,0.082643,60510.0,60501.0,0.082655]
[1727962162357,0.082644,60509.0,60501.0,0.082655]
[1727962162553,0.082644,60509.0,60500.0,0.3608]
[1727962162849,0.082651,60505.0,60501.0,0.001]
[1727962163645,0.082644,60509.0,60501.0,0.001]
[1727962163646,0.082644,60509.0,60501.0,0.082654]
[1727962163959,0.082644,60509.0,60500.0,0.3618]
[1727962163960,0.082655,60501.0,60500.0,0.3618]
[1727962164148,0.44,60508.0,60500.0,0.56990361]
[1727962164456,0.082651,60504.0,60503.0,0.06573102]
[1727962165152,0.8008,60508.0,60502.0,0.06573102]
[1727962165153,0.082652,60503.0,60502.0,0.06573102]
[1727962165363,0.082652,60503.0,60502.0,0.06577022]
[1727962167450,0.082652,60503.0,60488.0,0.11214333]
[1727962167451,0.082658,60499.0,60498.0,0.06577022]
[1727962167851,0.082654,60502.0,60499.0,0.082657]
[1727962168047,0.3608,60508.0,60501.0,0.06577022]
[1727962168252,0.3608,60508.0,60505.0,0.14846496]
[1727962168452,0.3608,60508.0,60505.0,0.06581496]
[1727962168649,0.3608,60508.0,60506.0,0.56]
[1727962169049,0.3608,60508.0,60505.0,0.06581496]
[1727962169258,0.3608,60508.0,60507.0,0.082647]
[1727962169451,0.082649,60506.0,60504.0,0.06581496]
[1727962169754,0.082649,60506.0,60502.0,0.06581496]
[1727962170063,0.082649,60506.0,60503.0,0.082652]
[1727962170272,0.3648,60508.0,60504.0,0.08265]
[1727962170563,0.082648,60507.0,60504.0,0.08265]
[1727962170756,0.004,60508.0,60502.0,0.06581496]
[1727962170953,0.00247994,60526.0,60507.0,0.3608]
[1727962171156,0.00247994,60526.0,60517.0,0.44]
[1727962171371,0.082623,60525.0,60521.0,0.082627]
[1727962171552,0.082627,60522.0,60517.0,0.082632]
[1727962171752,0.082631,60519.0,60515.0,0.082635]
[1727962171958,0.00247994,60526.0,60516.0,0.082634]
[1727962171959,0.082629,60521.0,60516.0,0.082634]
[1727962172271,0.082623,60525.0,60514.0,0.14840059]
[1727962172462,0.008,60525.0,60512.0,0.06576359]
[1727962172762,0.008,60525.0,60508.0,0.27686275]
[1727962172763,0.082633,60517.0,60515.0,0.082635]
[1727962173449,0.082633,60517.0,60509.0,0.06576359]
[1727962173450,0.009,60521.0,60509.0,0.06576359]
[1727962173653,0.009,60521.0,60510.0,0.082643]
[1727962174159,0.009,60521.0,60520.0,0.082629]
[1727962174871,0.012,60517.0,60513.0,0.06576359]
[1727962175158,0.012,60517.0,60516.0,0.082635]
[1727962175363,0.005,60517.0,60516.0,0.082635]
[1727962175568,0.009,60521.0,60520.0,0.082629]
[1727962175754,0.00247994,60526.0,60525.0,0.082622]
[1727962176158,0.3608,60532.0,60531.0,0.082614]
[1727962176363,0.443413,60532.0,60531.0,0.082614]
[1727962176566,0.3608,60532.0,60521.0,0.21579297]
[1727962176763,0.082621,60527.0,60525.0,0.082622]
[1727962177067,0.082621,60527.0,60526.0,0.082621]
[1727962177270,0.3608,60537.0,60523.0,0.3608]
[1727962177452,0.3608,60537.0,60522.0,0.082626]
[1727962177453,0.08261,60534.0,60522.0,0.082626]
[1727962177653,0.082612,60533.0,60522.0,0.082626]
[1727962177959,0.082612,60533.0,60531.0,0.082614]
[1727962178160,0.082612,60533.0,60532.0,0.082613]
[1727962178769,0.083612,60533.0,60532.0,0.082613]
[1727962178966,0.002,60533.0,60532.0,0.082613]
[1727962179365,0.007,60533.0,60532.0,0.083613]
[1727962179867,0.009,60533.0,60532.0,0.083613]
[1727962180067,0.009,60533.0,60532.0,1.179213]
[1727962180269,0.15044052,60547.0,60546.0,0.082594]
[1727962180270,0.00247863,60547.0,60546.0,0.082594]
[1727962180566,0.12553073,60547.0,60546.0,0.082594]